bitfinex-derivatives/quotes_BTCF0:USTF0_20210708
["timestamp","ask_amount","ask_price","bid_price","bid_amount"]
[1625735516831,13.78934586,32467.0,32456.0,0.29757544]
[1625735516982,0.54083435,32458.0,32457.0,0.00908767]
[1625735517132,1.54967674,32458.0,32457.0,0.01272175]
[1625735517432,2.54967674,32458.0,32457.0,0.01272175]
[1625735518032,3.03082762,32458.0,32457.0,0.01272175]
[1625735518184,3.03082762,32458.0,32457.0,0.00363408]
[1625735518331,4.11209835,32458.0,32457.0,0.00363408]
[1625735518634,3.03082762,32458.0,32457.0,0.00363408]
[1625735518931,2.03082762,32458.0,32457.0,0.00363408]
[1625735519081,3.03082762,32458.0,32457.0,0.00363408]
[1625735519234,4.11142053,32458.0,32457.0,0.00363408]
[1625735520432,5.37188978,32458.0,32457.0,0.00363408]
[1625735520732,5.37188978,32458.0,32448.0,0.01272034]
[1625735520884,0.6304858,32453.0,32449.0,0.00908912]
[1625735521033,0.6304858,32453.0,32448.0,0.00908912]
[1625735521183,0.27027776,32452.0,32450.0,0.01272065]
[1625735521400,0.27027776,32452.0,32447.0,0.10817404]
[1625735521521,0.09012364,32451.0,32437.0,0.0181724]
[1625735521655,0.09005363,32448.0,32444.0,0.0090893]
[1625735522012,0.62981566,32448.0,32445.0,0.01272238]
[1625735522161,0.48115088,32446.0,32445.0,0.01272238]
[1625735522310,0.48115088,32446.0,32445.0,0.02181187]
[1625735522610,0.57109197,32446.0,32445.0,0.00908949]
[1625735522779,0.57109197,32446.0,32443.0,0.13338765]
[1625735522910,1.37848019,32446.0,32443.0,0.13338765]
[1625735523059,1.37848019,32446.0,32444.0,0.00363514]
[1625735523060,2.10961608,32446.0,32444.0,0.00363514]
[1625735523209,1.10961608,32446.0,32444.0,0.00363514]
[1625735523360,0.62854234,32445.0,32444.0,0.00363514]
[1625735523513,0.53864805,32445.0,32444.0,0.00363514]
[1625735523659,0.53864805,32445.0,32441.0,0.01272334]
[1625735523660,1.53864805,32445.0,32441.0,0.01272334]
[1625735523811,1.53864805,32445.0,32440.0,0.24057544]
[1625735523812,1.0,32445.0,32444.0,0.00363521]
[1625735524185,1.24057544,32445.0,32441.0,0.00363521]
[1625735524485,0.24057544,32445.0,32444.0,0.00363547]
[1625735524635,0.24057544,32445.0,32442.0,0.00363519]
[1625735524935,0.24057544,32445.0,32441.0,0.00363517]
[1625735525235,0.24057544,32445.0,32443.0,0.00363517]
[1625735525534,0.24057544,32445.0,32442.0,0.00363513]
[1625735525688,0.24057544,32445.0,32444.0,0.00363513]
[1625735525985,1.24057544,32445.0,32437.0,0.00363525]
[1625735526135,0.48115088,32438.0,32437.0,0.00363525]
[1625735526285,0.77203088,32438.0,32437.0,0.00363525]
[1625735526437,1.77203088,32438.0,32437.0,0.00363525]
[1625735527038,0.77203088,32438.0,32437.0,0.00363525]
[1625735527188,1.77203088,32438.0,32437.0,0.00363525]
[1625735532222,0.48115088,32438.0,32437.0,0.35053525]
[1625735532365,0.24057544,32440.0,32437.0,0.35053525]
[1625735532516,0.24057544,32440.0,32437.0,0.81345425]
[1625735532668,0.24057544,32440.0,32438.0,0.00909144]
[1625735532819,0.24057544,32440.0,32438.0,0.01272654]
[1625735532971,0.24057544,32440.0,32439.0,0.47359011]
[1625735533122,0.24057544,32440.0,32439.0,0.47722513]
[1625735533272,0.24057544,32440.0,32439.0,0.46813402]
[1625735534020,0.24057544,32440.0,32439.0,0.56813402]
[1625735534628,0.24057544,32440.0,32439.0,0.57722501]
[1625735535899,0.24057544,32440.0,32439.0,0.57358999]
[1625735536048,0.24057544,32445.0,32439.0,0.57722452]
[1625735536200,0.24057544,32449.0,32444.0,0.24057544]
[1625735536350,0.24057544,32449.0,32444.0,0.53458544]
[1625735536576,0.24057544,32449.0,32445.0,0.46892846]
[1625735536725,0.24057544,32449.0,32448.0,0.1]
[1625735537026,0.24057544,32449.0,32448.0,0.553309]
[1625735537179,0.24057544,32449.0,32448.0,0.55694337]
[1625735538228,0.24057544,32449.0,32448.0,0.79751881]
[1625735540482,1.24057544,32449.0,32448.0,0.79751881]
[1625735540779,0.24057544,32449.0,32448.0,0.79751881]
[1625735543183,0.24057544,32454.0,32448.0,0.79751881]
[1625735543633,0.24057544,32454.0,32449.0,0.00363393]
[1625735543934,0.24057544,32454.0,32450.0,0.463457]
[1625735544083,0.24057544,32454.0,32453.0,0.1]
[1625735544233,0.24057544,32454.0,32453.0,0.34057544]
[1625735544384,0.24057544,32454.0,32453.0,0.80036744]
[1625735544534,0.24057544,32454.0,32453.0,0.80400121]
[1625735545283,0.24057544,32454.0,32453.0,0.89620121]
[1625735545733,0.24057544,32454.0,32453.0,0.80400121]
[1625735546730,0.24057544,32461.0,32453.0,0.80400121]
[1625735547009,0.24057544,32461.0,32454.0,0.00908723]
[1625735547161,0.24057544,32461.0,32454.0,0.30798061]
[1625735547311,0.24057544,32461.0,32455.0,0.462496]
[1625735547465,0.24057544,32461.0,32460.0,0.1]
[1625735547912,0.24057544,32461.0,32460.0,0.56038743]
[1625735548212,0.24057544,32461.0,32460.0,1.04153831]
[1625735548813,0.24057544,32461.0,32460.0,0.80096287]
[1625735555645,0.24057544,32461.0,32460.0,0.56038743]
[1625735558346,0.24057544,32461.0,32460.0,0.80096287]
[1625735566988,0.24057544,32461.0,32460.0,0.79732944]
[1625735567360,0.24057544,32461.0,32460.0,0.80096301]
[1625735567511,0.48009544,32461.0,32460.0,0.10363357]
[1625735567668,1.48009544,32461.0,32460.0,0.10363357]
[1625735567814,3.81749353,32461.0,32460.0,0.10363357]
[1625735567965,5.07578778,32461.0,32460.0,0.10363357]
[1625735568206,6.51347989,32461.0,32460.0,0.10363357]
[1625735568351,6.75405533,32461.0,32460.0,0.10363357]
[1625735568796,6.75405533,32461.0,32460.0,3.357e-05]
[1625735568958,6.75405533,32461.0,32444.0,0.24057544]
[1625735569099,0.08992828,32450.0,32448.0,0.00363486]
[1625735569237,0.91165999,32450.0,32448.0,0.00363486]
[1625735569397,1.25609732,32449.0,32445.0,0.00363496]
[1625735569536,5.2423,32446.0,32445.0,0.00363496]
[1625735569687,5.2423,32446.0,32436.0,0.0127232]
[1625735569864,6.78038394,32446.0,32437.0,0.00909157]
[1625735569987,6.78038394,32446.0,32445.0,0.0036354]
[1625735570137,5.78010013,32446.0,32445.0,0.0036354]
[1625735570287,7.45920732,32446.0,32438.0,0.46353151]
[1625735570437,8.45920732,32446.0,32445.0,0.00363556]
[1625735570592,6.92140719,32446.0,32445.0,0.00363556]
[1625735570741,7.92140719,32446.0,32439.0,0.00363563]
[1625735570890,9.53340232,32446.0,32439.0,0.00363563]
[1625735571043,0.62758216,32444.0,32439.0,0.00363563]
[1625735571189,1.0,32441.0,32439.0,0.00363563]
[1625735571338,1.0,32440.0,32439.0,0.00363563]
[1625735571946,0.28736,32441.0,32439.0,0.00363563]
[1625735572092,1.0,32440.0,32439.0,0.00363563]
[1625735572392,0.48115088,32440.0,32439.0,0.00363563]
[1625735572543,1.48115088,32440.0,32439.0,0.00363563]
[1625735573072,0.48115088,32440.0,32439.0,0.00363563]
[1625735573371,1.48115088,32440.0,32439.0,0.00363563]
[1625735574647,0.48115088,32440.0,32439.0,0.00363563]
[1625735575546,1.48115088,32440.0,32439.0,0.00363563]
[1625735575999,0.48115088,32440.0,32439.0,0.00363563]
[1625735576223,1.48115088,32440.0,32439.0,0.00363563]
[1625735576824,0.48115088,32440.0,32439.0,0.00363563]
[1625735577125,1.48115088,32440.0,32439.0,0.00363563]
[1625735579680,0.48115088,32440.0,32439.0,0.00363563]
[1625735581032,0.71372088,32440.0,32439.0,0.00363563]
[1625735581331,1.71372088,32440.0,32439.0,0.00363563]
[1625735581782,0.71372088,32440.0,32439.0,0.00363563]
[1625735582233,1.71372088,32440.0,32439.0,0.00363563]
[1625735584484,0.71372088,32440.0,32439.0,0.00363563]
[1625735584785,1.71372088,32440.0,32439.0,0.00363563]
[1625735585540,1.71372088,32440.0,32436.0,0.00363596]
[1625735585988,1.0,32437.0,32436.0,0.00363596]
[1625735586439,1.24057544,32437.0,32436.0,0.00363596]
[1625735586587,0.24057544,32437.0,32436.0,0.00363596]
[1625735586737,1.24057544,32437.0,32436.0,0.00363596]
[1625735587941,1.24057544,32437.0,32432.0,0.00363611]
[1625735588540,1.48115088,32433.0,32432.0,0.00363611]
[1625735588690,1.70635088,32433.0,32432.0,0.00363611]
[1625735589066,0.70635088,32433.0,32432.0,0.00363611]
[1625735589290,1.70635088,32433.0,32432.0,0.00363611]
[1625735590192,0.70635088,32433.0,32432.0,0.00363611]
[1625735591994,1.70635088,32433.0,32432.0,0.00363611]
[1625735592295,1.70635088,32433.0,32427.0,0.00363615]
[1625735592443,1.70635088,32433.0,32428.0,0.00909324]
[1625735592894,1.70635088,32433.0,32429.0,0.46606719]
[1625735593195,1.0,32432.0,32429.0,0.46606719]
[1625735593344,0.70635088,32433.0,32429.0,0.46606719]
[1625735593345,0.70635088,32433.0,32430.0,0.00363617]
[1625735593798,0.70635088,32433.0,32431.0,0.46074]
[1625735594245,0.70635088,32433.0,32432.0,0.00363617]
[1625735595446,1.70635088,32433.0,32432.0,0.00363617]
[1625735595896,0.70635088,32433.0,32432.0,0.00363617]
[1625735596045,1.70635088,32433.0,32432.0,0.00363617]
[1625735598073,0.70635088,32433.0,32432.0,0.00363617]
[1625735598225,1.70635088,32433.0,32432.0,0.00363617]
[1625735598375,1.70635088,32433.0,32432.0,0.012727]
[1625735598674,1.70635088,32433.0,32432.0,0.00363617]
[1625735598974,1.70635088,32433.0,32432.0,0.01272773]
[1625735599124,1.70635088,32433.0,32432.0,0.00909156]
[1625735599277,1.70635088,32433.0,32427.0,0.01272827]
[1625735599425,1.70635088,32433.0,32432.0,0.00363665]
[1625735599725,1.70635088,32433.0,32427.0,0.01272829]
[1625735600028,1.70635088,32433.0,32432.0,0.00363665]
[1625735600326,0.70635088,32433.0,32428.0,0.47303337]
[1625735600476,1.70635088,32433.0,32432.0,0.00363668]
[1625735600776,1.70635088,32433.0,32429.0,0.01272841]
[1625735601076,1.0,32430.0,32427.0,0.01272859]
[1625735601377,1.0,32430.0,32427.0,0.464113]
[1625735601678,0.70635088,32433.0,32428.0,0.01272885]
[1625735601977,0.70635088,32433.0,32429.0,0.455791]
[1625735602278,0.70635088,32433.0,32428.0,0.01272885]
[1625735602428,1.0,32430.0,32418.0,0.057]
[1625735602577,0.96230176,32419.0,32406.0,0.24057544]
[1625735602733,1.22667176,32419.0,32406.0,0.24057544]
[1625735602878,2.22667176,32419.0,32410.0,0.0090976]
[1625735603031,2.22667176,32419.0,32410.0,0.02182896]
[1625735603181,2.22667176,32419.0,32411.0,0.00909781]
[1625735603330,1.0,32414.0,32411.0,0.47272581]
[1625735603479,1.0,32414.0,32412.0,0.01273174]
[1625735603630,1.22667176,32419.0,32412.0,0.01273174]
[1625735603783,1.22667176,32419.0,32413.0,0.463366]
[1625735604232,1.0,32414.0,32406.0,0.24057544]
[1625735604533,0.24057544,32408.0,32407.0,0.02183232]
[1625735604682,0.50401544,32408.0,32407.0,0.02183232]
[1625735604832,0.50401544,32408.0,32407.0,0.01273336]
[1625735606184,1.50401544,32408.0,32407.0,0.01273336]
[1625735606487,0.50401544,32408.0,32407.0,0.01273336]
[1625735606635,0.74459088,32408.0,32407.0,0.01273336]
[1625735606786,1.74459088,32408.0,32407.0,0.01273336]
[1625735607536,0.74459088,32408.0,32407.0,0.01273336]
[1625735607844,1.74459088,32408.0,32407.0,0.0036381]
[1625735607987,0.74459088,32408.0,32407.0,0.0036381]
[1625735608138,1.74459088,32408.0,32404.0,0.01273471]
[1625735608287,0.74459088,32408.0,32404.0,0.01273471]
[1625735608587,0.74459088,32408.0,32407.0,0.24057544]
[1625735608903,0.74459088,32408.0,32407.0,0.24421387]
[1625735609189,0.48115088,32408.0,32407.0,0.24421387]
[1625735609565,0.37815088,32408.0,32407.0,0.24421387]
[1625735609715,0.24057544,32419.0,32407.0,0.24421387]
[1625735610013,0.24057544,32419.0,32408.0,0.01273276]
[1625735610163,0.24057544,32419.0,32418.0,3.7623]
[1625735610312,0.24057544,32419.0,32418.0,3.99452]
[1625735610463,1.9073,32422.0,32418.0,3.99452]
[1625735610612,1.9073,32422.0,32421.0,0.48115088]
[1625735610762,0.9602,32422.0,32421.0,0.48115088]
[1625735611063,1.9602,32422.0,32421.0,0.48478851]
[1625735611363,0.9602,32422.0,32421.0,0.48478851]
[1625735611514,0.9602,32422.0,32421.0,0.58478851]
[1625735611817,0.24057544,32423.0,32421.0,0.58478851]
[1625735612265,0.24057544,32423.0,32422.0,0.46418332]
[1625735612714,0.24057544,32423.0,32422.0,0.56418332]
[1625735613015,1.24057544,32423.0,32422.0,0.56418332]
[1625735613317,1.24057544,32423.0,32422.0,0.10363732]
[1625735615564,1.24057544,32423.0,32411.0,0.057]
[1625735615716,1.57415544,32423.0,32410.0,0.24057544]
[1625735615866,1.66277637,32423.0,32410.0,0.24057544]
[1625735616015,1.0,32412.0,32407.0,0.24057544]
[1625735616167,1.0,32411.0,32407.0,0.24057544]
[1625735616469,1.0,32408.0,32407.0,0.24057544]
[1625735616618,1.72172632,32408.0,32407.0,0.24057544]
[1625735616765,0.72172632,32408.0,32407.0,0.24421389]
[1625735617366,0.72172632,32408.0,32407.0,0.21457544]
[1625735617667,1.72172632,32408.0,32407.0,0.21821391]
[1625735617819,1.72172632,32408.0,32407.0,0.32185242]
[1625735618118,0.72172632,32408.0,32407.0,0.32185242]
[1625735618570,0.24057544,32408.0,32407.0,0.32185242]
[1625735618721,0.24057544,32408.0,32407.0,0.794551]
[1625735618873,0.24057544,32413.0,32407.0,0.794551]
[1625735619018,0.24057544,32413.0,32407.0,1.115871]
[1625735619169,0.24057544,32413.0,32408.0,0.01273303]
[1625735619321,0.24057544,32413.0,32408.0,0.00909502]
[1625735619473,0.24057544,32413.0,32412.0,0.1]
[1625735619773,0.24057544,32413.0,32412.0,0.10363805]
[1625735620070,0.24057544,32413.0,32412.0,0.34448805]
[1625735620373,0.24057544,32413.0,32412.0,0.80980905]
[1625735620681,0.24057544,32413.0,32412.0,1.05038449]
[1625735622700,0.24057544,32420.0,32412.0,1.05038449]
[1625735622850,0.24057544,32420.0,32414.0,4.934]
[1625735623151,0.24057544,32420.0,32415.0,0.464107]
[1625735623300,0.24057544,32420.0,32415.0,0.47683849]
[1625735623451,0.24057544,32420.0,32419.0,0.1]
[1625735623604,0.24057544,32420.0,32419.0,0.35792]
[1625735623903,0.24057544,32420.0,32419.0,0.36155743]
[1625735624051,0.24057544,32423.0,32419.0,0.36155743]
[1625735624351,0.24057544,32423.0,32419.0,0.82293343]
[1625735624502,0.24057544,32423.0,32420.0,0.003637]
[1625735624654,0.9884,32424.0,32422.0,0.72172632]
[1625735624802,0.9989,32425.0,32422.0,0.72172632]
[1625735624953,0.9989,32425.0,32423.0,0.00625317]
[1625735625255,1.24057544,32427.0,32424.0,0.00363714]
[1625735625555,1.24057544,32427.0,32425.0,0.461598]
[1625735625708,1.24057544,32427.0,32426.0,0.1]
[1625735626006,0.24057544,32427.0,32426.0,0.1]
[1625735626156,1.24057544,32427.0,32426.0,0.10363732]
[1625735628562,0.24057544,32427.0,32426.0,0.10363732]
[1625735628712,1.24057544,32427.0,32426.0,0.10363732]
[1625735632688,1.24057544,32427.0,32426.0,0.34421276]
[1625735633437,0.24057544,32427.0,32426.0,0.34421276]
[1625735634789,1.24057544,32427.0,32426.0,0.34421276]
[1625735635991,0.24057544,32427.0,32426.0,0.34421276]
[1625735636740,1.24057544,32427.0,32426.0,0.34421276]
[1625735637492,0.24057544,32427.0,32426.0,0.34421276]
[1625735640047,0.24057544,32427.0,32426.0,0.10363732]
[1625735643726,1.24057544,32427.0,32426.0,0.10363732]
[1625735644551,0.24057544,32427.0,32426.0,0.10363732]
[1625735645007,0.24057544,32428.0,32426.0,0.10363732]
[1625735645152,0.24057544,32428.0,32426.0,0.43778732]
[1625735645302,0.24057544,32428.0,32427.0,0.00363739]
[1625735646127,1.24057544,32428.0,32427.0,0.10363739]
[1625735646728,1.24057544,32428.0,32427.0,0.34421283]
[1625735648232,0.24057544,32428.0,32427.0,0.34421283]
[1625735648611,1.32835603,32428.0,32427.0,0.34421283]
[1625735648907,1.5037582,32428.0,32427.0,0.34421283]
[1625735649062,1.85429736,32428.0,32427.0,0.34421283]
[1625735649808,1.76651677,32428.0,32427.0,0.34421283]
[1625735649960,2.29279022,32428.0,32427.0,0.34421283]
[1625735650110,2.29279022,32428.0,32427.0,0.35330668]
[1625735650260,1.50390793,32428.0,32427.0,0.35330668]
[1625735651037,1.32850576,32428.0,32427.0,0.35330668]
[1625735651349,0.85576759,32428.0,32427.0,0.35330668]
[1625735651470,0.76783727,32428.0,32427.0,0.35330668]
[1625735651622,1.76783727,32428.0,32427.0,0.11273124]
[1625735651763,1.76747791,32428.0,32427.0,0.10363739]
[1625735652063,1.76747791,32428.0,32427.0,0.11273153]
[1625735652211,2.46978657,32428.0,32427.0,0.11273153]
[1625735652361,1.76747791,32428.0,32427.0,0.11273153]
[1625735652586,2.46990505,32428.0,32427.0,0.11273153]
[1625735652887,2.71048049,32428.0,32427.0,0.11273153]
[1625735653492,2.00805335,32428.0,32427.0,0.11273153]
[1625735653787,2.35937827,32428.0,32416.0,0.057]
[1625735653937,0.2637393,32427.0,32402.0,0.924]
[1625735654095,0.2637393,32427.0,32412.0,0.00909812]
[1625735654239,0.61403995,32423.0,32417.0,0.01273302]
[1625735654387,0.61403995,32423.0,32413.0,0.01273314]
[1625735654544,0.08776144,32420.0,32413.0,0.47374614]
[1625735654688,0.38522144,32420.0,32414.0,0.00909892]
[1625735654841,0.96230176,32415.0,32410.0,0.00909875]
[1625735654989,0.96230176,32415.0,32414.0,0.01273355]
[1625735655138,0.96230176,32415.0,32414.0,0.02183262]
[1625735655290,0.96230176,32415.0,32414.0,0.01750107]
[1625735655445,0.96230176,32415.0,32414.0,0.03023481]
[1625735655446,1.96230176,32415.0,32414.0,0.03023481]
[1625735655890,1.96230176,32415.0,32414.0,0.02113574]
[1625735656565,1.96230176,32415.0,32414.0,0.03023528]
[1625735657920,0.96230176,32415.0,32414.0,0.03023528]
[1625735658673,0.96230176,32415.0,32414.0,0.13023528]
[1625735659121,1.96230176,32415.0,32414.0,0.13023528]
[1625735661603,0.96230176,32415.0,32414.0,0.13023528]
[1625735664608,1.96230176,32415.0,32414.0,0.13023528]
[1625735666108,0.96230176,32415.0,32414.0,0.13023528]
[1625735666259,1.96230176,32415.0,32414.0,0.13023528]
[1625735666412,1.96230176,32415.0,32414.0,0.12183328]
[1625735666710,1.96230176,32415.0,32414.0,0.11273374]
[1625735666858,2.49040843,32415.0,32414.0,0.10363821]
[1625735667008,1.49040843,32415.0,32404.0,0.057]
[1625735667158,1.84179034,32415.0,32402.0,0.057]
[1625735667308,2.84179034,32415.0,32400.0,0.01819314]
[1625735667459,0.61534983,32413.0,32403.0,0.0127356]
[1625735667607,0.86531983,32413.0,32403.0,0.0127356]
[1625735667759,0.61498959,32412.0,32404.0,0.01046472]
[1625735667909,0.61498959,32412.0,32404.0,0.0232015]
[1625735668059,0.61498959,32412.0,32405.0,0.00910086]
[1625735668209,0.61498959,32412.0,32405.0,0.02183739]
[1625735668210,0.26369237,32412.0,32405.0,0.02183739]
[1625735668360,0.0878921,32411.0,32406.0,0.47091706]
[1625735668510,0.0878921,32411.0,32407.0,0.00910115]
[1625735668811,0.26347859,32411.0,32407.0,0.01274025]
[1625735668963,0.72172632,32408.0,32407.0,0.01274025]
[1625735669112,0.72172632,32408.0,32407.0,0.00910115]
[1625735669262,0.72172632,32408.0,32407.0,0.00363921]
[1625735669413,1.72172632,32408.0,32407.0,0.01274055]
[1625735669563,1.72172632,32408.0,32407.0,0.00910134]
[1625735669712,1.72172632,32408.0,32400.0,0.00910136]
[1625735669865,1.72172632,32408.0,32407.0,0.00363921]
[1625735670163,1.72172632,32408.0,32401.0,0.0127372]
[1625735670314,0.72172632,32408.0,32402.0,0.00910137]
[1625735670464,0.72172632,32408.0,32407.0,0.00363921]
[1625735670613,0.72172632,32408.0,32403.0,0.01273727]
[1625735670765,1.72172632,32408.0,32404.0,0.0091014]
[1625735670913,0.24057544,32405.0,32404.0,0.0091014]
[1625735671065,1.54539544,32405.0,32404.0,0.0091014]
[1625735671215,1.54539544,32405.0,32404.0,0.01273721]
[1625735671366,1.54539544,32405.0,32404.0,0.02183876]
[1625735671517,1.54539544,32405.0,32404.0,0.00910155]
[1625735671687,0.54539544,32405.0,32404.0,0.00363921]
[1625735671814,0.54539544,32405.0,32404.0,0.01274051]
[1625735671964,0.54539544,32405.0,32404.0,0.0091013]
[1625735672115,1.54539544,32405.0,32404.0,0.0091013]
[1625735672269,1.54539544,32405.0,32404.0,0.01274046]
[1625735672716,1.30482,32405.0,32404.0,0.01274046]
[1625735673242,2.26712176,32405.0,32404.0,0.01274046]
[1625735674593,1.26712176,32405.0,32404.0,0.01274046]
[1625735674893,2.26712176,32405.0,32404.0,0.01274046]
[1625735675945,1.26712176,32405.0,32404.0,0.01274046]
[1625735676405,1.26712176,32405.0,32404.0,0.47838046]
[1625735676553,1.26712176,32405.0,32404.0,0.48747745]
[1625735676705,0.54539544,32405.0,32404.0,0.48747745]
[1625735676850,0.24057544,32405.0,32404.0,0.48747745]
[1625735677298,0.24057544,32405.0,32404.0,1.06862833]
[1625735678949,0.24057544,32405.0,32404.0,1.36998833]
[1625735681199,0.24057544,32411.0,32404.0,1.36998833]
[1625735681349,0.24057544,32411.0,32409.0,0.24057544]
[1625735681651,0.24057544,32411.0,32410.0,0.46322798]
[1625735681801,0.24057544,32411.0,32410.0,0.47596158]
[1625735682182,0.24057544,32411.0,32410.0,0.57596158]
[1625735682474,0.24057544,32411.0,32410.0,0.66726158]
[1625735682776,0.24057544,32411.0,32410.0,5.06836158]
[1625735683375,0.24057544,32411.0,32410.0,5.30893702]
[1625735683981,0.24057544,32411.0,32410.0,5.30529885]
[1625735687664,0.24057544,32411.0,32410.0,5.21399885]
[1625735689545,0.24057544,32411.0,32410.0,0.81289885]
[1625735690744,1.24057544,32411.0,32410.0,0.81289885]
[1625735692695,0.24057544,32411.0,32410.0,0.81289885]
[1625735700656,0.24057544,32411.0,32388.0,8.1637]
[1625735700809,0.24057544,32411.0,32394.0,0.3499]
[1625735700957,1.24057544,32411.0,32394.0,0.2929]
[1625735701106,3.7704,32403.0,32395.0,0.01273689]
[1625735701256,4.05793,32403.0,32395.0,0.01273689]
[1625735701405,0.72172632,32396.0,32395.0,0.47849089]
[1625735701555,0.98445632,32396.0,32395.0,0.47849089]
[1625735701857,0.98445632,32396.0,32395.0,0.49668712]
[1625735702460,0.98445632,32396.0,32395.0,0.47849089]
[1625735703509,1.98445632,32396.0,32395.0,0.47849089]
[1625735705539,0.98445632,32396.0,32395.0,0.47849089]
[1625735705687,0.98445632,32396.0,32395.0,0.48759352]
[1625735705835,0.98445632,32396.0,32395.0,0.02183952]
[1625735706138,1.98445632,32396.0,32395.0,0.02183952]
[1625735706887,0.98445632,32396.0,32395.0,0.02183952]
[1625735707188,1.98445632,32396.0,32395.0,0.02183952]
[1625735709441,1.98445632,32396.0,32395.0,0.01274174]
[1625735710042,0.98445632,32396.0,32395.0,0.01274174]
[1625735710193,1.98445632,32396.0,32395.0,0.01274174]
[1625735712141,0.98445632,32396.0,32395.0,0.01274174]
[1625735712441,1.98445632,32396.0,32395.0,0.01274174]
[1625735714693,1.98445632,32396.0,32395.0,0.00363911]
[1625735714843,1.98445632,32396.0,32395.0,0.01274297]
[1625735715295,0.98445632,32396.0,32395.0,0.01274297]
[1625735715593,1.98445632,32396.0,32395.0,0.00363911]
[1625735716043,1.98445632,32396.0,32388.0,0.01274031]
[1625735716192,1.98445632,32396.0,32384.0,4.95117544]
[1625735716193,1.98445632,32396.0,32395.0,0.00364009]
[1625735716493,0.98445632,32396.0,32390.0,0.00364011]
[1625735716644,0.98445632,32396.0,32391.0,0.00910392]
[1625735716794,1.98445632,32396.0,32391.0,0.00910392]
[1625735716945,1.98445632,32396.0,32389.0,0.00910396]
[1625735717095,1.98445632,32396.0,32392.0,0.00364011]
[1625735717245,0.98445632,32396.0,32393.0,0.00910399]
[1625735717545,0.98445632,32396.0,32394.0,0.00364011]
[1625735718073,1.0,32395.0,32388.0,0.01274057]
[1625735718371,1.0,32395.0,32389.0,0.00910402]
[1625735718520,0.98445632,32396.0,32389.0,0.00910402]
[1625735718820,0.98445632,32396.0,32390.0,0.00364016]
[1625735718971,0.98445632,32396.0,32391.0,0.00910402]
[1625735719421,1.0,32392.0,32391.0,0.00910402]
[1625735719572,1.24057544,32392.0,32380.0,0.00910454]
[1625735719870,1.24057544,32392.0,32381.0,0.0127417]
[1625735720022,1.24057544,32392.0,32382.0,0.00910528]
[1625735720321,0.24057544,32392.0,32382.0,0.47003728]
[1625735720492,0.24057544,32392.0,32383.0,0.0127476]
[1625735720635,0.24057544,32392.0,32383.0,0.00364101]
[1625735720773,1.0,32384.0,32383.0,0.00364101]
[1625735720928,6.51593,32384.0,32383.0,0.00364101]
[1625735721074,6.51593,32384.0,32376.0,0.01274487]
[1625735721225,6.51593,32384.0,32383.0,0.00364142]
[1625735721522,6.51593,32384.0,32378.0,0.00364183]
[1625735721523,7.23765632,32384.0,32378.0,0.00364183]
[1625735721681,7.23765632,32384.0,32379.0,0.0091086]
[1625735721973,1.0,32380.0,32379.0,0.0091086]
[1625735722124,1.0,32380.0,32371.0,0.00910853]
[1625735722273,1.0,32380.0,32370.0,0.00910848]
[1625735722422,1.0,32380.0,32379.0,0.00364213]
[1625735722574,6.23765632,32384.0,32379.0,0.00910832]
[1625735722723,6.23765632,32384.0,32372.0,0.00910848]
[1625735722872,1.0,32380.0,32372.0,0.00910848]
[1625735723172,1.0,32380.0,32373.0,0.01274753]
[1625735723324,1.0,32380.0,32374.0,0.00910843]
[1625735723473,0.48115088,32375.0,32374.0,0.00910843]
[1625735723773,0.48115088,32375.0,32374.0,0.01446043]
[1625735723925,0.48115088,32375.0,32374.0,0.01810247]
[1625735725352,0.48115088,32375.0,32374.0,0.11810247]
[1625735729381,0.48115088,32375.0,32374.0,0.34830247]
[1625735730106,0.48115088,32375.0,32374.0,0.35740767]
[1625735730323,0.48115088,32375.0,32374.0,0.45050767]
[1625735730484,0.24057544,32384.0,32374.0,0.45050767]
[1625735730549,0.24057544,32384.0,32375.0,0.5]
[1625735730732,0.24057544,32384.0,32375.0,0.50910768]
[1625735730896,0.24057544,32384.0,32376.0,0.0218506]
[1625735731037,0.24057544,32384.0,32377.0,0.00910633]
[1625735731147,0.9187,32391.0,32377.0,0.50910633]
[1625735731305,1.0,32399.0,32390.0,3.8481]
[1625735731455,0.9521,32403.0,32390.0,4.19719]
[1625735731602,0.24057544,32395.0,32394.0,0.24057544]
[1625735731889,0.24057544,32395.0,32394.0,0.24421584]
[1625735732038,0.24057544,32395.0,32394.0,0.25413884]
[1625735732187,0.24057544,32395.0,32394.0,0.26323918]
[1625735732337,0.24057544,32395.0,32394.0,0.36323918]
[1625735732711,0.24057544,32395.0,32394.0,0.45583918]
[1625735733162,0.24057544,32395.0,32394.0,0.4649432]
[1625735734364,0.24057544,32395.0,32394.0,0.45219878]
[1625735734515,0.24057544,32395.0,32394.0,0.35959878]
[1625735734664,0.24057544,32395.0,32394.0,0.36870289]
[1625735734814,0.24057544,32395.0,32394.0,0.12812745]
[1625735734967,0.47435544,32395.0,32394.0,0.109923]
[1625735735126,1.47435544,32395.0,32394.0,0.109923]
[1625735735266,1.47435544,32395.0,32394.0,0.1]
[1625735735564,1.71493088,32395.0,32384.0,0.057]
[1625735735714,1.71493088,32395.0,32378.0,0.24057544]
[1625735735715,1.71493088,32395.0,32379.0,0.057]
[1625735735865,1.71493088,32395.0,32378.0,0.24057544]
[1625735736017,1.71493088,32395.0,32380.0,0.02185157]
[1625735736165,1.0,32386.0,32381.0,0.00910714]
[1625735736316,1.0,32385.0,32381.0,0.48206465]
[1625735736468,1.0,32385.0,32381.0,0.47295751]
[1625735736617,1.0,32385.0,32382.0,0.01274451]
[1625735736915,0.29823,32386.0,32382.0,0.01274451]
[1625735737065,0.29823,32386.0,32383.0,0.464833]
[1625735737367,0.29823,32386.0,32384.0,0.00364117]
[1625735737671,0.72172632,32385.0,32384.0,0.01274408]
[1625735737972,0.72172632,32385.0,32384.0,0.02185074]
[1625735738127,0.72172632,32385.0,32384.0,0.46769108]
[1625735738278,0.72172632,32385.0,32384.0,0.454947]
[1625735738428,1.72172632,32385.0,32384.0,0.45858837]
[1625735738724,0.72172632,32385.0,32384.0,0.0127447]
[1625735739020,0.72172632,32385.0,32384.0,0.449231]
[1625735739318,0.72172632,32385.0,32384.0,0.01274442]
[1625735739618,0.72172632,32385.0,32384.0,0.45857042]
[1625735741646,1.72172632,32385.0,32384.0,0.45857042]
[1625735742697,0.72172632,32385.0,32384.0,0.45857042]
[1625735744499,0.72172632,32385.0,32384.0,0.46767725]
[1625735745251,0.72172632,32385.0,32384.0,0.68613725]
[1625735745700,0.24057544,32385.0,32384.0,1.01941269]
[1625735745852,0.24057544,32385.0,32384.0,1.11941269]
[1625735746680,0.24057544,32394.0,32384.0,1.11941269]
[1625735746828,0.24057544,32394.0,32393.0,4.0683]
[1625735746979,0.24057544,32394.0,32393.0,4.50919406]
[1625735747278,0.24057544,32394.0,32393.0,4.98346886]
[1625735747430,0.24057544,32394.0,32393.0,5.08346886]
[1625735747730,0.24057544,32394.0,32393.0,5.56461974]